fUST/lending_fUST_20250903
["ID","MTS","AMOUNT","RATE_DAILY","PERIOD"]
[383144399,1756865447974,-585.17,0.0001452,2]
[383144401,1756865447982,-480.0,0.0001452,2]
[383144403,1756865447990,-480.0,0.0001452,2]
[383144405,1756865447999,-254.66283498,0.0001452,2]
[383144407,1756865448008,-480.0,0.0001452,2]
[383144409,1756865448017,-608.00411222,0.0001452,2]
[383144411,1756865448026,-480.0,0.0001452,2]
[383144413,1756865448034,-480.0,0.0001452,2]
[383144415,1756865448043,-480.0,0.0001452,2]
[383144417,1756865448052,-480.0,0.0001452,2]
[383144419,1756865448061,-480.0,0.0001452,2]
[383144421,1756865448070,-480.0,0.0001452,2]
[383144423,1756865448079,-331.87,0.0001452,2]
[383144425,1756865448088,-480.0,0.0001452,2]
[383144427,1756865448097,-486.41500963,0.0001452,2]
[383144429,1756865448106,-386.07362233,0.0001452,2]
[383144431,1756865448115,-480.0,0.0001452,2]
[383144433,1756865448124,-480.0,0.0001452,2]
[383144435,1756865448133,-480.0,0.0001452,2]
[383144438,1756865448143,-480.0,0.0001452,2]
[383144440,1756865448152,-401.90364069,0.0001452,2]
[383144442,1756865448161,-480.0,0.0001452,2]
[383144444,1756865448170,-480.0,0.0001452,2]
[383144445,1756865448180,-483.38157241,0.0001452,2]
[383144448,1756865448191,-480.0,0.0001452,2]
[383144450,1756865448200,-869.6,0.0001452,2]
[383144452,1756865448209,-480.0,0.0001452,2]
[383144454,1756865448218,-485.79531694,0.0001452,2]
[383144456,1756865448227,-480.0,0.0001452,2]
[383144457,1756865448236,-480.0,0.0001452,2]
[383144460,1756865448245,-480.0,0.0001452,2]
[383144461,1756865448254,-480.0,0.0001452,2]
[383144464,1756865448264,-480.0,0.0001452,2]
[383144466,1756865448273,-480.0,0.0001452,2]
[383144468,1756865448283,-480.0,0.0001452,2]
[383144470,1756865448292,-480.0,0.0001452,2]
[383144472,1756865448301,-671.19,0.0001452,2]
[383144474,1756865448310,-425.19099263,0.0001452,2]
[383144476,1756865448320,-480.0,0.0001452,2]
[383144478,1756865448330,-496.3,0.0001452,2]
[383144480,1756865448340,-480.0,0.0001452,2]
[383144482,1756865448351,-583.04,0.0001452,2]
[383144484,1756865448360,-480.0,0.0001452,2]
[383144486,1756865448371,-582.45,0.0001452,2]
[383144488,1756865448381,-480.0,0.0001452,2]
[383144490,1756865448390,-480.0,0.0001452,2]
[383144492,1756865448400,-582.86222844,0.0001452,2]
[383144494,1756865448409,-480.0,0.0001452,2]
[383144496,1756865448419,-287.52208279,0.0001452,2]
[383144498,1756865448428,-480.0,0.0001452,2]
[383144500,1756865448442,-2219.71,0.0001452,2]
[383144502,1756865448452,-480.0,0.0001452,2]
[383144504,1756865448462,-480.0,0.0001452,2]
[383144506,1756865448472,-510.87877306,0.0001452,2]
[383144508,1756865448482,-480.0,0.0001452,2]
[383144510,1756865448491,-480.0,0.0001452,2]
[383144512,1756865448504,-480.0,0.0001452,2]
[383144514,1756865448514,-480.0,0.0001452,2]
[383144516,1756865448525,-1068.01,0.0001452,2]
[383144518,1756865448534,-644.13,0.0001452,2]
[383144520,1756865448544,-489.17,0.0001452,2]
[383144522,1756865448553,-770.75,0.0001452,2]
[383144524,1756865448562,-480.0,0.0001452,2]
[383144526,1756865448571,-480.0,0.0001452,2]
[383144528,1756865448581,-480.0,0.0001452,2]
[383144530,1756865448590,-480.0,0.0001452,2]
[383144532,1756865448600,-1454.66,0.0001452,2]
[383144534,1756865448609,-480.0,0.0001452,2]
[383144536,1756865448618,-549.75,0.0001452,2]
[383144538,1756865448627,-484.08392058,0.0001452,2]
[383144540,1756865448636,-480.0,0.0001452,2]
[383144542,1756865448646,-480.0,0.0001452,2]
[383144544,1756865448655,-482.50969463,0.0001452,2]
[383144546,1756865448664,-487.46971653,0.0001452,2]
[383144560,1756865448785,-480.0,0.0001452,2]
[383144562,1756865448796,-480.0,0.0001452,2]
[383144564,1756865448806,-480.0,0.0001452,2]
[383144566,1756865448814,-480.0,0.0001452,2]
[383144568,1756865448823,-480.0,0.0001452,2]
[383144570,1756865448833,-480.0,0.0001452,2]
[383144572,1756865448842,-995.94,0.0001452,2]
[383144574,1756865448851,-2322.08,0.0001452,2]
[383144576,1756865448862,-847.65,0.0001452,2]
[383144578,1756865448871,-480.0,0.0001452,2]
[383144580,1756865448881,-512.26235463,0.0001452,2]
[383144582,1756865448891,-746.5,0.0001452,2]
[383144584,1756865448900,-480.0,0.0001452,2]
[383144586,1756865448910,-480.0,0.0001452,2]
[383144588,1756865448920,-1385.56,0.0001452,2]
[383144590,1756865448929,-480.0,0.0001452,2]
[383144592,1756865448940,-480.0,0.0001452,2]
[383144594,1756865448949,-935.27,0.0001452,2]
[383144596,1756865448959,-1505.08,0.0001452,2]
[383144598,1756865448968,-480.0,0.0001452,2]
[383144600,1756865448978,-3081.98,0.0001452,2]
[383144602,1756865448987,-409.46107385,0.0001452,2]
[383144604,1756865448997,-480.0,0.0001452,2]
[383144606,1756865449006,-1326.09,0.0001452,2]
[383144608,1756865449015,-480.0,0.0001452,2]
[383144610,1756865449025,-480.0,0.0001452,2]
[383144612,1756865449034,-480.0,0.0001452,2]
[383144614,1756865449043,-480.0,0.0001452,2]
[383144616,1756865449053,-480.0,0.0001452,2]
[383144618,1756865449062,-480.0,0.0001452,2]
[383144620,1756865449072,-752.1,0.0001452,2]
[383144622,1756865449082,-489.04128952,0.0001452,2]
[383144624,1756865449091,-480.0,0.0001452,2]
[383144626,1756865449100,-480.0,0.0001452,2]
[383144628,1756865449110,-1000.0,0.00014521,2]
[383144630,1756865449119,-1000.0,0.00014521,2]
[383144632,1756865449129,-1000.0,0.00014521,2]
[383144634,1756865449139,-168.0,0.0001458,2]
[383144636,1756865449148,-168.0,0.00014585,2]
[383144638,1756865449158,-168.0,0.00014621,2]
[383144640,1756865449167,-168.0,0.00014719,2]
[383144642,1756865449177,-168.0,0.00014782,2]
[383144644,1756865449188,-168.0,0.00014784,2]
[383144646,1756865449198,-199.17569901,0.00014794,2]
[383144648,1756865449207,-199.68174886,0.00014794,2]
[383144650,1756865449217,-199.72749532,0.00014794,2]
[383144652,1756865449227,-500.0,0.00014794,2]
[383144654,1756865449236,-200.10732385,0.00014794,2]
[383144656,1756865449246,-480.0,0.00014794,2]
[383144658,1756865449255,-585.17,0.00014794,2]
[383144660,1756865449265,-480.0,0.00014794,2]
[383144662,1756865449274,-480.0,0.00014794,2]
[383144664,1756865449284,-180.2601421,0.00014794,2]
[383144665,1756865449293,-251.13499177,0.00014794,2]
[383144666,1756865449302,-319.43841114,0.00014794,2]
[383144667,1756865449312,-480.0,0.00014794,2]
[383144668,1756865449321,-322.12786663,0.00014794,2]
[383144669,1756865449331,-483.76678429,0.00014794,2]
[383144670,1756865449340,-480.0,0.00014794,2]
[383144671,1756865449349,-158.03341443,0.00014794,2]
[383144672,1756865449358,-480.0,0.00014794,2]
[383144673,1756865449367,-480.0,0.00014794,2]
[383144674,1756865449377,-480.0,0.00014794,2]
[383144675,1756865449386,-480.0,0.00014794,2]
[383144676,1756865449395,-617.81078791,0.00014794,2]
[383144677,1756865449405,-480.0,0.00014794,2]
[383144678,1756865449415,-480.0,0.00014794,2]
[383144680,1756865449425,-869.6,0.00014794,2]
[383144682,1756865449435,-296.63826905,0.00014794,2]
[383144684,1756865449445,-480.0,0.00014794,2]
[383144686,1756865449454,-480.0,0.00014794,2]
[383144688,1756865449463,-480.0,0.00014794,2]
[383144690,1756865449473,-480.0,0.00014794,2]
[383144692,1756865449483,-480.0,0.00014794,2]
[383144694,1756865449492,-480.0,0.00014794,2]
[383144696,1756865449505,-480.0,0.00014794,2]
[383144698,1756865449516,-671.19,0.00014794,2]
[383144700,1756865449525,-480.0,0.00014794,2]
[383144702,1756865449535,-480.0,0.00014794,2]
[383144704,1756865449546,-496.3,0.00014794,2]
[383144706,1756865449555,-480.0,0.00014794,2]
[383144708,1756865449564,-583.04,0.00014794,2]
[383144710,1756865449573,-480.0,0.00014794,2]
[383144711,1756865449584,-582.45,0.00014794,2]
[383144713,1756865449594,-480.0,0.00014794,2]
[383144716,1756865449604,-480.0,0.00014794,2]
[383144718,1756865449613,-480.0,0.00014794,2]
[383144720,1756865449623,-480.0,0.00014794,2]
[383144721,1756865449632,-2219.71,0.00014794,2]
[383144724,1756865449641,-260.79771771,0.00014794,2]
[383144725,1756865449651,-480.0,0.00014794,2]
[383144728,1756865449660,-107.58289711,0.00014794,2]
[383148390,1756865520100,1000.0,0.00014,7]
[383148397,1756865544437,1000.0,0.00014,7]
[383148398,1756865563873,1000.0,0.000144,7]
[383148399,1756865574162,1000.0,0.000144,7]
[383148400,1756865579255,1000.0,0.000144,7]
[383148401,1756865581358,1000.0,0.000144,7]
[383148402,1756865582864,1000.0,0.000144,7]
[383148403,1756865583677,1000.0,0.000144,7]
[383148404,1756865584953,1000.0,0.000144,7]
[383148405,1756865601227,1313.76,0.000144,7]
[383148406,1756865619462,1000.0,0.000144,7]
[383148407,1756865623226,1000.0,0.000144,7]
[383148408,1756865627684,1000.0,0.000144,7]
[383148409,1756866008156,590.48535209,0.00014318,5]
[383148416,1756866420728,-380.27560109,0.0001369,2]
[383148417,1756866420750,-428.69248341,0.0001369,2]
[383148418,1756866420772,-249.0,0.00013697,2]
[383148419,1756866420795,-1200.0,0.00013697,2]
[383148420,1756866420820,-480.0,0.00013698,2]
[383148421,1756866420842,-480.0,0.00013698,2]
[383148422,1756866420865,-480.0,0.00013698,2]
[383148423,1756866420888,-596.4,0.00013698,2]
[383148424,1756866420910,-480.0,0.00013698,2]
[383148425,1756866420933,-480.0,0.00013698,2]
[383148426,1756866420955,-480.0,0.00013698,2]
[383148427,1756866420977,-480.0,0.00013698,2]
[383148428,1756866421000,-480.0,0.00013698,2]
[383148429,1756866421024,-480.0,0.00013698,2]
[383148430,1756866421048,-480.0,0.00013698,2]
[383148431,1756866421070,-480.0,0.00013698,2]
[383148432,1756866421094,-289.54057073,0.00013698,2]
[383148433,1756866421116,-480.0,0.00013698,2]
[383148434,1756866421138,-480.0,0.00013698,2]
[383148435,1756866421160,-480.0,0.00013698,2]
[383148436,1756866421183,-483.76700526,0.00013698,2]
[383148437,1756866421208,-518.86994353,0.00013698,2]
[383148438,1756866421388,-483.41312414,0.00013698,2]
[383148439,1756866421413,-480.0,0.00013698,2]
[383148440,1756866421436,-480.0,0.00013698,2]
[383148441,1756866421459,-480.0,0.00013698,2]
[383148442,1756866421482,-480.0,0.00013698,2]
[383148443,1756866421504,-480.0,0.00013698,2]
[383148444,1756866421529,-480.0,0.00013698,2]
[383148445,1756866421553,-555.57535561,0.00013698,2]
[383148446,1756866421576,-480.0,0.00013698,2]
[383148447,1756866421600,-253.22296512,0.00013698,2]
[383148448,1756866421623,-480.0,0.00013698,2]
[383148449,1756866421647,-480.0,0.00013698,2]
[383148450,1756866421670,-480.0,0.00013698,2]
[383148451,1756866421693,-480.0,0.00013698,2]
[383148452,1756866421718,-480.0,0.00013698,2]
[383148453,1756866421743,-480.0,0.00013698,2]
[383148454,1756866421777,-923.1,0.00013698,2]
[383148455,1756866421802,-480.0,0.00013698,2]
[383148456,1756866421825,-480.0,0.00013698,2]
[383148457,1756866421849,-480.0,0.00013698,2]
[383148458,1756866421872,-480.0,0.00013698,2]
[383148459,1756866421898,-480.0,0.00013698,2]
[383148460,1756866421923,-642.29,0.00013698,2]
[383148461,1756866421950,-453.2356289,0.00013698,2]
[383148462,1756866421975,-480.0,0.00013698,2]
[383148463,1756866422003,-2568.32,0.00013698,2]
[383148464,1756866422027,-1257.98,0.00013698,2]
[383148465,1756866422054,-480.0,0.00013698,2]
[383148466,1756866422086,-688.43,0.00013698,2]
[383148467,1756866422108,-480.0,0.00013698,2]
[383148468,1756866422130,-480.0,0.00013698,2]
[383148469,1756866422152,-509.46,0.00013698,2]
[383148470,1756866422175,-480.0,0.00013698,2]
[383148471,1756866422198,-536.78,0.00013698,2]
[383148472,1756866422221,-829.95,0.00013698,2]
[383148473,1756866422248,-480.0,0.00013698,2]
[383148474,1756866422272,-480.0,0.00013698,2]
[383148475,1756866422296,-483.99257657,0.00013698,2]
[383148476,1756866422322,-480.0,0.00013698,2]
[383148477,1756866422344,-1154.63,0.00013698,2]
[383148478,1756866422367,-480.0,0.00013698,2]
[383148479,1756866422391,-573.06347365,0.00013698,2]
[383148480,1756866422414,-706.38,0.00013698,2]
[383148481,1756866422436,-480.0,0.00013698,2]
[383148482,1756866422459,-480.0,0.00013698,2]
[383148483,1756866422481,-480.0,0.00013698,2]
[383148484,1756866422503,-480.0,0.00013698,2]
[383148485,1756866422526,-1105.07,0.00013698,2]
[383148486,1756866422554,-480.0,0.00013698,2]
[383148487,1756866422578,-622.08,0.00013698,2]
[383148488,1756866422601,-480.0,0.00013698,2]
[383148489,1756866422624,-626.75,0.00013698,2]
[383148490,1756866422647,-480.0,0.00013698,2]
[383148491,1756866422670,-601.93151198,0.00013698,2]
[383148492,1756866422692,-799.4,0.00013698,2]
[383148493,1756866422715,-480.0,0.00013698,2]
[383148494,1756866422738,-480.0,0.00013698,2]
[383148495,1756866422762,-1254.23,0.00013698,2]
[383148496,1756866422785,-480.0,0.00013698,2]
[383148497,1756866422812,-480.0,0.00013698,2]
[383148498,1756866422836,-531.36,0.00013698,2]
[383148499,1756866422859,-480.0,0.00013698,2]
[383148500,1756866422887,-480.0,0.00013698,2]
[383148501,1756866422909,-462.671267,0.00013698,2]
[383148502,1756866422931,-480.0,0.00013698,2]
[383148503,1756866422956,-480.0,0.00013698,2]
[383148504,1756866422979,-606.14968271,0.00013698,2]
[383148505,1756866423005,-1757.27,0.00013698,2]
[383148506,1756866423029,-480.0,0.00013698,2]
[383148507,1756866423055,-480.0,0.00013698,2]
[383148508,1756866423080,-929.19,0.00013698,2]
[383148509,1756866423102,-1935.06,0.00013698,2]
[383148510,1756866423124,-726.416385,0.00013699,2]
[383148511,1756866423149,-232.90165665,0.00013918,2]
[383148512,1756866423171,-530.32150586,0.00013918,2]
[383148513,1756866423195,-160.0,0.00013918,2]
[383148514,1756866423219,-417.15472785,0.00013918,2]
[383148515,1756866423247,-160.0,0.00013918,2]
[383148516,1756866423271,-160.0,0.00013918,2]
[383148517,1756866423296,-846.3157213,0.00013918,2]
[383148518,1756866423323,-208.33333333,0.00013918,2]
[383148519,1756866423350,-11371.27183129,0.00013918,2]
[383148520,1756866423374,-160.0,0.00013918,2]
[383148521,1756866423399,-217.50314573,0.00013918,2]
[383148522,1756866423425,-185.928,0.0001394,2]
[383148523,1756866423449,-550.414,0.0001394,2]
[383148524,1756866423472,-424.86,0.0001394,2]
[383148525,1756866423498,-500.0,0.00013971,2]
[383148526,1756866423522,-500.0,0.00013971,2]
[383148527,1756866423548,-455.52155395,0.00013971,2]
[383148528,1756866423574,-500.0,0.00013971,2]
[383148529,1756866423598,-584.26691197,0.00013971,2]
[383148530,1756866423623,-395.50459526,0.00013971,2]
[383148531,1756866423646,-186.46136602,0.00013971,2]
[383148532,1756866423670,-500.0,0.00013971,2]
[383148533,1756866423696,-500.0,0.00013971,2]
[383148534,1756866423722,-500.0,0.00013971,2]
[383148535,1756866423746,-327.00120945,0.00013971,2]
[383148536,1756866423771,-480.0,0.00013972,2]
[383148537,1756866423794,-190.78570973,0.00013972,2]
[383148538,1756866423819,-480.0,0.00013972,2]
[383148539,1756866423843,-213.99,0.00013972,2]
[383148540,1756866423867,-480.0,0.00013972,2]
[383148541,1756866423892,-480.0,0.00013972,2]
[383148542,1756866423917,-480.0,0.00013972,2]
[383148543,1756866423939,-480.0,0.00013972,2]
[383148544,1756866423966,-480.0,0.00013972,2]
[383148545,1756866423991,-480.0,0.00013972,2]
[383148546,1756866424019,-480.0,0.00013972,2]
[383148547,1756866424043,-480.0,0.00013972,2]
[383148548,1756866424069,-594.30264661,0.00013972,2]
[383148549,1756866424098,-480.0,0.00013972,2]
[383148550,1756866424122,-480.0,0.00013972,2]
[383148551,1756866424146,-299.66406866,0.00013972,2]
[383148552,1756866424169,-480.0,0.00013972,2]
[383148553,1756866424192,-480.0,0.00013972,2]
[383148554,1756866424338,-480.0,0.00013972,2]
[383148555,1756866424363,-480.0,0.00013972,2]
[383148556,1756866424387,-480.0,0.00013972,2]
[383148557,1756866424411,-366.40740245,0.00013972,2]
[383148558,1756866424434,-480.0,0.00013972,2]
[383148559,1756866424457,-480.0,0.00013972,2]
[383148560,1756866424480,-323.86315556,0.00013972,2]
[383148561,1756866424504,-480.0,0.00013972,2]
[383148562,1756866424529,-480.0,0.00013972,2]
[383148563,1756866424554,-923.1,0.00013972,2]
[383148564,1756866424578,-480.0,0.00013972,2]
[383148565,1756866424602,-480.0,0.00013972,2]
[383148566,1756866424625,-480.0,0.00013972,2]
[383148567,1756866424649,-480.0,0.00013972,2]
[383148568,1756866424674,-480.0,0.00013972,2]
[383148569,1756866424697,-642.29,0.00013972,2]
[383148570,1756866424721,-480.0,0.00013972,2]
[383148571,1756866424745,-2568.32,0.00013972,2]
[383148572,1756866424769,-1257.98,0.00013972,2]
[383148573,1756866424793,-480.0,0.00013972,2]
[383148574,1756866424817,-688.43,0.00013972,2]
[383148575,1756866424840,-480.0,0.00013972,2]
[383148576,1756866424865,-480.0,0.00013972,2]
[383148577,1756866424895,-829.95,0.00013972,2]
[383148578,1756866424918,-536.78,0.00013972,2]
[383148579,1756866424942,-480.0,0.00013972,2]
[383148580,1756866424966,-480.0,0.00013972,2]
[383148581,1756866424989,-480.0,0.00013972,2]
[383148582,1756866425016,-1154.63,0.00013972,2]
[383148583,1756866425040,-480.0,0.00013972,2]
[383148584,1756866425062,-706.38,0.00013972,2]
[383148585,1756866425085,-480.0,0.00013972,2]
[383148586,1756866425109,-480.0,0.00013972,2]
[383148587,1756866425132,-556.22219528,0.00013972,2]
[383148588,1756866425154,-480.0,0.00013972,2]
[383148589,1756866425176,-1105.07,0.00013972,2]
[383148590,1756866425201,-480.0,0.00013972,2]
[383148591,1756866425224,-622.08,0.00013972,2]
[383148592,1756866425248,-539.67,0.00013972,2]
[383148593,1756866425270,-151.0,0.00013972,2]
[383148594,1756866425293,-626.75,0.00013972,2]
[383148595,1756866425315,-480.0,0.00013972,2]
[383148596,1756866425337,-799.4,0.00013972,2]
[383148597,1756866425360,-480.0,0.00013972,2]
[383148598,1756866425382,-480.0,0.00013972,2]
[383148599,1756866425405,-1254.23,0.00013972,2]
[383148600,1756866425428,-480.0,0.00013972,2]
[383148601,1756866425450,-480.0,0.00013972,2]
[383148602,1756866425473,-531.36,0.00013972,2]
[383148603,1756866425496,-480.0,0.00013972,2]
[383148604,1756866425519,-480.0,0.00013972,2]
[383148605,1756866425543,-480.0,0.00013972,2]
[383148606,1756866425566,-237.29811881,0.00013972,2]
[383148607,1756866425594,-1757.27,0.00013972,2]
[383148608,1756866425625,-480.0,0.00013972,2]
[383148609,1756866425655,-480.0,0.00013972,2]
[383148610,1756866425679,-929.19,0.00013972,2]
[383148611,1756866425708,-1935.06,0.00013972,2]
[383148612,1756866425731,-500.0,0.00013973,2]
[383148613,1756866425754,-151.7098,0.00013973,2]
[383148614,1756866425777,-480.0,0.00014246,2]
[383148615,1756866425800,-480.0,0.00014246,2]
[383148616,1756866425825,-480.0,0.00014246,2]
[383148617,1756866425848,-480.0,0.00014246,2]
[383148618,1756866425873,-615.09057905,0.00014246,2]
[383148619,1756866425897,-480.0,0.00014246,2]
[383148620,1756866425920,-480.0,0.00014246,2]
[383148621,1756866425950,-480.0,0.00014246,2]
[383148622,1756866425979,-480.0,0.00014246,2]
[383148623,1756866426009,-480.0,0.00014246,2]
[383148624,1756866426034,-480.0,0.00014246,2]
[383148625,1756866426062,-480.0,0.00014246,2]
[383148626,1756866426091,-480.0,0.00014246,2]
[383148627,1756866426117,-480.0,0.00014246,2]
[383148628,1756866426143,-480.0,0.00014246,2]
[383148629,1756866426172,-480.0,0.00014246,2]
[383148630,1756866426198,-480.0,0.00014246,2]
[383148631,1756866426225,-480.0,0.00014246,2]
[383148632,1756866426253,-480.0,0.00014246,2]
[383148633,1756866426280,-480.0,0.00014246,2]
[383148634,1756866426310,-480.0,0.00014246,2]
[383148635,1756866426338,-923.1,0.00014246,2]
[383148636,1756866426366,-480.0,0.00014246,2]
[383148637,1756866426391,-480.0,0.00014246,2]
[383148638,1756866426421,-480.0,0.00014246,2]
[383148639,1756866426450,-480.0,0.00014246,2]
[383148640,1756866426484,-480.0,0.00014246,2]
[383148641,1756866426513,-642.29,0.00014246,2]
[383148642,1756866426542,-480.0,0.00014246,2]
[383148643,1756866426578,-2568.32,0.00014246,2]
[383148644,1756866426608,-1257.98,0.00014246,2]
[383148645,1756866426637,-483.36459854,0.00014246,2]
[383148646,1756866426663,-688.43,0.00014246,2]
[383148647,1756866426691,-480.0,0.00014246,2]
[383148648,1756866426719,-480.0,0.00014246,2]
[383148649,1756866426750,-536.78,0.00014246,2]
[383148650,1756866426779,-829.95,0.00014246,2]
[383148651,1756866426806,-480.0,0.00014246,2]
[383148652,1756866426834,-480.0,0.00014246,2]
[383148653,1756866426862,-480.0,0.00014246,2]
[383148654,1756866426891,-1154.63,0.00014246,2]
[383148655,1756866426921,-480.0,0.00014246,2]
[383148656,1756866426947,-706.38,0.00014246,2]
[383148657,1756866426972,-480.0,0.00014246,2]
[383148658,1756866427002,-480.0,0.00014246,2]
[383148659,1756866427029,-1105.07,0.00014246,2]
[383148660,1756866427056,-169.34,0.00014246,2]
[383148661,1756866427083,-480.0,0.00014246,2]
[383148662,1756866427110,-622.08,0.00014246,2]
[383148663,1756866427136,-153.576149,0.00014246,2]
[383148664,1756866427162,-626.75,0.00014246,2]
[383148665,1756866427187,-480.0,0.00014246,2]
[383148666,1756866427214,-799.4,0.00014246,2]
[383148667,1756866427242,-480.0,0.00014246,2]
[383148668,1756866427267,-480.0,0.00014246,2]
[383148669,1756866427294,-1254.23,0.00014246,2]
[383148670,1756866427319,-480.0,0.00014246,2]
[383148671,1756866427344,-480.0,0.00014246,2]
[383148672,1756866427370,-531.36,0.00014246,2]
[383148673,1756866427396,-480.0,0.00014246,2]
[383148674,1756866427421,-542.45933883,0.00014246,2]
[383148675,1756866427447,-480.0,0.00014246,2]
[383148676,1756866427474,-1757.27,0.00014246,2]
[383148677,1756866427500,-480.0,0.00014246,2]
[383148678,1756866427526,-480.0,0.00014246,2]
[383148679,1756866427551,-929.19,0.00014246,2]
[383148680,1756866427578,-270.071907,0.0001452,2]
[383148681,1756866427604,-480.0,0.0001452,2]
[383148682,1756866427631,-480.0,0.0001452,2]
[383148683,1756866427656,-480.0,0.0001452,2]
[383148684,1756866427682,-480.0,0.0001452,2]
[383148685,1756866427708,-480.0,0.0001452,2]
[383148686,1756866427734,-480.0,0.0001452,2]
[383148687,1756866427938,-480.0,0.0001452,2]
[383148688,1756866427969,-480.0,0.0001452,2]
[383148689,1756866427993,-480.0,0.0001452,2]
[383148690,1756866428019,-480.0,0.0001452,2]
[383148691,1756866428043,-480.0,0.0001452,2]
[383148692,1756866428067,-480.0,0.0001452,2]
[383148693,1756866428091,-561.7338268,0.0001452,2]
[383148694,1756866428115,-480.0,0.0001452,2]
[383148695,1756866428137,-480.0,0.0001452,2]
[383148696,1756866428161,-480.0,0.0001452,2]
[383148697,1756866428186,-234.46026692,0.0001452,2]
[383148698,1756866428210,-480.0,0.0001452,2]
[383148699,1756866428235,-480.0,0.0001452,2]
[383148700,1756866428260,-923.1,0.0001452,2]
[383148701,1756866428284,-480.0,0.0001452,2]
[383148702,1756866428307,-480.0,0.0001452,2]
[383148703,1756866428332,-480.0,0.0001452,2]
[383148704,1756866428355,-480.0,0.0001452,2]
[383148705,1756866428378,-480.0,0.0001452,2]
[383148706,1756866428401,-642.29,0.0001452,2]
[383148707,1756866428424,-480.0,0.0001452,2]
[383148708,1756866428447,-2568.32,0.0001452,2]
[383148709,1756866428471,-1257.98,0.0001452,2]
[383148710,1756866428495,-688.43,0.0001452,2]
[383148711,1756866428521,-480.0,0.0001452,2]
[383148712,1756866428545,-480.0,0.0001452,2]
[383148713,1756866428570,-536.78,0.0001452,2]
[383148714,1756866428594,-829.95,0.0001452,2]
[383148715,1756866428618,-480.0,0.0001452,2]
[383148716,1756866428641,-480.0,0.0001452,2]
[383148717,1756866428666,-480.0,0.0001452,2]
[383148718,1756866428689,-1154.63,0.0001452,2]
[383148719,1756866428713,-480.0,0.0001452,2]
[383148720,1756866428736,-706.38,0.0001452,2]
[383148721,1756866428760,-480.0,0.0001452,2]
[383148722,1756866428783,-480.0,0.0001452,2]
[383148723,1756866428807,-1105.07,0.0001452,2]
[383148724,1756866428833,-480.0,0.0001452,2]
[383148725,1756866428856,-622.08,0.0001452,2]
[383148726,1756866428881,-626.75,0.0001452,2]
[383148727,1756866428904,-480.0,0.0001452,2]
[383148728,1756866428931,-799.4,0.0001452,2]
[383148729,1756866428954,-480.0,0.0001452,2]
[383148730,1756866428979,-480.0,0.0001452,2]
[383148731,1756866429005,-1254.23,0.0001452,2]
[383148732,1756866429029,-480.0,0.0001452,2]
[383148733,1756866429053,-480.0,0.0001452,2]
[383148734,1756866429077,-531.36,0.0001452,2]
[383148735,1756866429101,-480.0,0.0001452,2]